Cogmind - Beta 13 @@@ ROGUE MODE // 2024.04.19 @ 11:31:52 Player: Barbarossa Result: Self-destructed Performance ------------- Evolutions (2) 1000 Regions Visited (3) 600 Robots Destroyed (17) 85 Value Destroyed (396) 396 Prototype IDs (0) 0 Alien Tech Used (0) 0 Bonus (0) 0 TOTAL SCORE: 2081 Bonus ------- None Cogmind --------- Core Integrity 299/550 Matter 157/300 Energy 8/100 System Corruption 4% Temperature Cool (0) Movement Walking (130) Location -8/Materials Parts ------- > --- POWER (2) -------- (None) > --- PROPULSION (3) --- Titanium Leg Titanium Leg Titanium Leg > --- UTILITY (4) ------ Medium Storage Unit Advanced Targeting Computer Advanced Targeting Computer > --- WEAPON (2) ------- (None) > --- INVENTORY (10) --- Titanium Leg Compact Wheel Compact Wheel Compact Wheel Improved Hover Unit Improved Hover Unit Improved Hover Unit VTOL Module VTOL Module VTOL Module Peak State ------------ > --- POWER ------------ Ion Engine Ion Engine > --- PROPULSION ------- Titanium Leg Titanium Leg Titanium Leg > --- UTILITY ---------- Medium Storage Unit Improved Targeting Computer > --- WEAPON ----------- Heavy Mace Heavy Mace > --- INVENTORY -------- Titanium Leg Compact Wheel Compact Wheel Compact Wheel Improved Hover Unit Improved Hover Unit Particle Gun Grenade Launcher [Rating: 21] Favorites ----------- Power Ion Engine Engine Ion Engine Propulsion Titanium Leg Leg Titanium Leg Wheel Compact Wheel Hover Unit Improved Hover Unit Utility Medium Storage Unit Storage Medium Storage Unit Processor Improved Targeting Computer Weapon Heavy Mace Energy Gun Medium Laser Launcher Grenade Launcher Impact Weapon Heavy Mace Build | -11 -10 -9 -8 ------- Run | Yrd Mat Mat Mat Slots Evolved 4 | . . 2 2 Power 1 | . . 1 . Propulsion 1 | . . 1 . Utility 2 | . . . 2 Weapon . | . . . . Parts Attached 29 | . 14 11 4 Power 3 | . 1 2 . Engine 3 | . 1 2 . Core . | . . . . Reactor . | . . . . Propulsion 16 | . 10 4 2 Treads . | . . . . Leg 6 | . 1 3 2 Wheel 5 | . 5 . . Hover 5 | . 4 1 . Flight . | . . . . Utility 4 | . 1 1 2 Device . | . . . . Storage 1 | . 1 . . Processor 3 | . . 1 2 Hackware . | . . . . Protection . | . . . . Artifact . | . . . . Weapon 6 | . 2 4 . Energy Gun 3 | . 2 1 . Energy Cannon . | . . . . Ballistic Gun . | . . . . Ballistic Cannon . | . . . . Launcher 1 | . . 1 . Special Weapon . | . . . . Impact Weapon 2 | . . 2 . Slashing Weapon . | . . . . Piercing Weapon . | . . . . Special Melee Weapon . | . . . . Unidentified Prototypes . | . . . . Parts Lost 8 | . 2 2 4 Power 3 | . 1 . 2 Propulsion 3 | . 1 2 . Utility 1 | . . . 1 Weapon 1 | . . . 1 Highest Loss Streak 2 | . 1 2 2 To Critical Strikes . | . . . . Average Slot Usage (%) 76 | . 75 88 57 Engine 16 | . 13 21 13 Leg 13 | . 11 8 27 Wheel 5 | . 12 . . Hover 8 | . 3 20 . Storage 11 | . 14 11 9 Processor 3 | . . 7 4 Energy Gun 8 | . 19 . . Impact Weapon 6 | . . 18 . Naked Turns . | . . . . Heaviest Build 26 | 11 18 26 23 Greatest Support 51 | 20 32 51 51 Greatest Overweight (x) 3 | . 1 3 . Average Overweight (x) . | . . . . Largest Inventory Capacity 10 | . 10 10 10 Average Capacity 9 | . 8 10 10 Most Carried 10 | . 10 10 10 Average Carried 8 | . 7 9 10 Final Capacity 10 | 8 10 10 10 Final Carried 10 | 6 9 10 10 Class Distribution -------------------- 100% | Mutant Dominant Class ---------------- Mutant | -10/Materials Mutant | -9/Materials Mutant | -8/Materials Resources | -11 -10 -9 -8 ----------- Run | Yrd Mat Mat Mat Matter Collected 366 | 200 98 68 . Remotely . | . . . . Salvage Created 460 | . 263 87 110 Parts 17 | . 9 1 7 Haulers Intercepted . | . . . . Recyclers Shooed 4 | . 3 1 . Parts Field Recycled . | . . . . Retrieved Matter . | . . . . Parts Self-Destructed . | . . . . Prevented . | . . . . Kills | -11 -10 -9 -8 ------- Run | Yrd Mat Mat Mat Combat Hostiles Destroyed 14 | . 4 4 6 Melee 2 | . . 2 . Guns 4 | . 4 . . AOE 6 | . . . 6 Classes Destroyed 7 | . 4 2 1 Recycler 1 | . 1 . . Operator 1 | . 1 . . Watcher 1 | . 1 . . Swarmer 7 | . . 3 4 Grunt 5 | . 4 . 1 Duelist 1 | . . . 1 Sentry 1 | . . 1 . Best Kill Streak 6 | . 3 3 6 Combat Bots Only 6 | . 2 3 6 Max Kills in Single Turn 3 | . 1 1 3 Gunslinging . | . . . . Exploded 3 | . . . 3 Melee 1 | . . 1 . Uniques/NPCs Destroyed . | . . . . Combat | -11 -10 -9 -8 -------- Run | Yrd Mat Mat Mat Hostile Shots Fired 158 | . 42 44 72 Missed 51 | . 6 17 28 Damage Taken 1792 | . 443 314 1035 Core 418 | . 73 94 251 Absorbed by Shields . | . . . . Core Remaining (%) 82 | 100 70 76 . Volleys Fired 34 | . 30 . 4 Largest 2 | . 2 . 1 Hottest 90 | . 90 . 30 Shots Fired 46 | . 42 . 4 Gun 42 | . 42 . . Cannon . | . . . . Launcher 4 | . . . 4 Special . | . . . . Kinetic . | . . . . Thermal 42 | . 42 . . Explosive 4 | . . . 4 Electromagnetic . | . . . . Robot Hit Streak 11 | . 11 . 2 Robot Miss Streak 3 | . 3 . 1 Penetration Max . | . . . . Secondary Targets 1 | . 1 . . Max Gunslinging Chain 1 | . 1 . . Shots Hit Robots 40 | . 29 9 2 Core Hits 26 | . 16 2 8 Critical Kills . | . . . . Critical Parts Destroyed 1 | . . 1 . Critical Strikes 1 | . . 1 . Smash 1 | . . 1 . Melee Attacks 11 | . . 11 . Impact 11 | . . 11 . Slashing . | . . . . Piercing . | . . . . Sneak Attacks 1 | . . 1 . Combat Hostiles . | . . . . Follow-up Attacks 2 | . . 2 . Damage Inflicted 1024 | . 350 367 307 Guns 350 | . 350 . . Cannons . | . . . . Explosions 307 | . . . 307 Melee 366 | . . 366 . Ramming 1 | . . 1 . Kinetic . | . . . . Thermal 350 | . 350 . . Explosive 307 | . . . 307 Electromagnetic . | . . . . Impact 366 | . . 366 . Slashing . | . . . . Piercing . | . . . . Highest Corruption 4 | . . 2 4 Average Corruption 3 | . . 2 4 Corruption Purged . | . . . . Corruption Blocked . | . . . . Effects 3 | . . . 3 Matter Fused 2 | . . . 2 Energy Discharges 1 | . . . 1 Overload Shots . | . . . . Overflow Damage 97 | . . 75 22 Projectiles . | . . . . Explosions 22 | . . . 22 Melee 75 | . . 75 . Knockbacks . | . . . . Impact . | . . . . Kinetic . | . . . . Secondary . | . . . . Self-Inflicted Damage 38 | . . . 38 Shots 1 | . . . 1 Rammed . | . . . . Targets Rammed 1 | . . 1 . Kicked 1 | . . 1 . Crushed . | . . . . Highest Temperature 269 | . 269 . 12 Average Temperature 107 | . 111 . 6 Received Heat Transfer 612 | . 243 54 315 Effects 2 | . 2 . . Energy Bleed 1 | . 1 . . Interference 1 | . 1 . . Siege Activations . | . . . . Robots Corrupted . | . . . . Combat Hostiles . | . . . . Parts Fried 4 | . . 4 . Impact Corruptions 4 | . . 4 . Robots Melted . | . . . . Combat Hostiles . | . . . . Parts Melted 4 | . 4 . . Heat Transferred 930 | . 930 . . Parts Sabotaged . | . . . . Parts Stolen . | . . . . Parts Stripped . | . . . . Power Chain Reactions . | . . . . Alert | -11 -10 -9 -8 ------- Run | Yrd Mat Mat Mat Peak Influence 245 | . 127 178 245 Initial 74 | . . 53 74 Average 114 | . 74 117 190 Maximum Alert Level 1 | . . . 1 Low Security (%) 83 | . 100 100 25 Level 1 16 | . . . 75 Level 2 . | . . . . Level 3 . | . . . . Level 4 . | . . . . Level 5 . | . . . . High Security . | . . . . Max Security . | . . . . Squads Dispatched 1 | . 1 . . Investigation . | . . . . Extermination . | . . . . Reinforcement 1 | . 1 . . Assault . | . . . . Garrison . | . . . . Intercept . | . . . . Searches Triggered . | . . . . Construction Impeded . | . . . . Haulers Reinforced . | . . . . Active Scanning Responses . | . . . . Cargo Convoy Interrupts . | . . . . Stealth | -11 -10 -9 -8 --------- Run | Yrd Mat Mat Mat Distress Signals 5 | . . 3 2 Communications Jammed . | . . . . Distress Signals . | . . . . Times Spotted 34 | . 8 11 15 Peak Tracking Total 8 | . 3 6 8 Tactical Retreats 2 | . . 1 1 Traps | -11 -10 -9 -8 ------- Run | Yrd Mat Mat Mat Traps Triggered 2 | . 1 1 . Indirectly . | . . . . Trap Hack Attempts . | . . . . Triggered . | . . . . Disarmed . | . . . . Reprogrammed . | . . . . Reused . | . . . . Traps Extracted . | . . . . Installed . | . . . . Triggered . | . . . . Machines | -11 -10 -9 -8 ---------- Run | Yrd Mat Mat Mat Machines Disabled . | . . . . Max in Single Turn . | . . . . Machines Repaired . | . . . . Machines Dismantled . | . . . . Machines Sabotaged . | . . . . Overloaded Fab Kills . | . . . . Hacking | -11 -10 -9 -8 --------- Run | Yrd Mat Mat Mat Machines Accessed 3 | . 3 . . Terminals 2 | . 2 . . Fabricators . | . . . . Repair Stations . | . . . . Recycling Units 1 | . 1 . . Scanalyzers . | . . . . Garrison Access . | . . . . Total Hacks 8 | . 8 . . Successful 2 | . 2 . . Failed 6 | . 6 . . Catastrophic 1 | . 1 . . Database Lockouts . | . . . . Manual 5 | . 5 . . Terminals 5 | . 5 . . Fabricators . | . . . . Repair Stations . | . . . . Recycling Units 3 | . 3 . . Scanalyzers . | . . . . Garrison Access . | . . . . Terminal Hacks . | . . . . Fabricator Hacks . | . . . . Repair Station Hacks . | . . . . Recycling Unit Hacks 2 | . 2 . . Report Inventory 1 | . 1 . . Retrieve Components 1 | . 1 . . Scanalyzer . | . . . . Garrison Access Hacks . | . . . . Unauthorized Hacks . | . . . . Terminals . | . . . . Fabricators . | . . . . Repair Stations . | . . . . Recycling Units . | . . . . Scanalyzers . | . . . . Garrison Access . | . . . . Data Cores Recovered . | . . . . Used . | . . . . Hacking Detections 3 | . 3 . . Full Trace Events . | . . . . Feedback Events . | . . . . Feedback Blocked . | . . . . Robot Schematics Acquired . | . . . . Robots Built . | . . . . Authchips . | . . . . Time . | . . . . Total Robot Build Rating . | . . . . Part Schematics Acquired . | . . . . Parts Built . | . . . . Authchips . | . . . . Time . | . . . . Total Part Build Rating . | . . . . Parts Repaired . | . . . . Time . | . . . . Parts Recycled . | . . . . Recycled Matter . | . . . . Retrieved Matter . | . . . . Retrieved Components 3 | . 3 . . Parts Scanalyzed . | . . . . Part Schematics Acquired . | . . . . Parts Damaged . | . . . . Bothacking | -11 -10 -9 -8 ------------ Run | Yrd Mat Mat Mat Used RIF Installer . | . . . . Robots Hacked . | . . . . Non-combat . | . . . . Combat . | . . . . Robot Hacks Applied . | . . . . Relay Couplers Released . | . . . . Fabnet Peak Effective % . | . . . . Robots Rewired . | . . . . Allies Hacked . | . . . . Hacks Repelled . | . . . . Allies | -11 -10 -9 -8 -------- Run | Yrd Mat Mat Mat Total Allies . | . . . . Largest Group . | . . . . Highest-Rated Group . | . . . . Highest-Rated Ally . | . . . . Total Orders . | . . . . Ally Attacks . | . . . . Total Damage . | . . . . Kills . | . . . . Allies Corrupted . | . . . . Allies Melted . | . . . . Intel | -11 -10 -9 -8 ------- Run | Yrd Mat Mat Mat Robot Analysis Total . | . . . . Derelict Logs Recovered . | . . . . Drone Launches . | . . . . Drone Recoveries . | . . . . Exploration | -11 -10 -9 -8 ------------- Run | Yrd Mat Mat Mat Turns Passed 718 | . 310 252 156 Spaces Moved 477 | 1 199 172 105 Core . | . . . . Treads . | . . . . Legs 211 | 1 65 40 105 Wheels 104 | . 104 . . Hover 162 | . 30 132 . Flight . | . . . . Fastest Speed 52 | 120 56 52 130 Average Speed 112 | 120 101 114 130 Slowest Speed 240 | 120 120 240 130 Overloaded Moves . | . . . . Propulsion Burnouts . | . . . . Robots Hopped . | . . . . Cave-ins Triggered 1 | . . . 1 Exploration Rate (%) 19 | 2 39 19 17 Regions Visited 3 Branch Regions . Pre-discovered Areas . | . . . . Known Exits Taken . | . . . . Unknown Exits Taken 3 | 1 1 1 . Scrap Searched . | . . . . Spaces Dug . | . . . . Terrain Destroyed 30 | . . . 30 Melee . | . . . . Projectile . | . . . . AOE 30 | . . . 30 Terrain Rammed . | . . . . Walls Destroyed . | . . . . Machines Disabled . | . . . . Actions | -11 -10 -9 -8 --------- Run | Yrd Mat Mat Mat Total 593 | . 262 212 119 Wait 10 | . 3 2 5 Move 474 | . 198 171 105 Hop . | . . . . Pick Up 19 | . 10 9 . Fast Attach 8 | . 3 3 2 Attach 9 | . 3 6 . Detach 2 | . . 2 . Swap 12 | . 8 2 2 Drop 15 | . 7 7 1 Fire 34 | . 30 . 4 Melee 9 | . . 9 . Ram . | . . . . Kick 1 | . . 1 . Crush . | . . . . Escape Stasis . | . . . . Rewire . | . . . . Trap . | . . . . Miscellaneous . | . . . . Route ------- -11/Scrapyard -10/Materials -9/Materials -8/Materials History --------- Turn | Location | Event 1 | -11/Scrapyard | Discovered new exit (range 0) 1 | -11/Scrapyard | Entered Materials 276 | -10/Materials | Discovered new exit (range 6) 311 | -10/Materials | Entered another Materials area 311 | -9/Materials | Evolved 2 slots: Power x1, Propulsion x1 360 | -9/Materials | Build established: Mutant 552 | -9/Materials | Discovered new exit (range 5) 563 | -9/Materials | Entered another Materials area 563 | -8/Materials | Evolved 2 slots: Utility x2 604 | -8/Materials | Crushed by falling debris 719 | -8/Materials | Self-destructed Last Messages --------------- 00602_ G-47 Trooper destroyed. 00604_ The unstable cave ceiling collapses. 00604_ Crushed by falling debris. 00604_ Grenade Launcher destroyed. 00604_ System corrupted by crushing effect (+2). 00604_ Imp. Targeting Computer destroyed. 00604_ System corrupted by crushing effect (+2). 00618_ R-06 Scavenger collects Flight Unit. 00633_ W-25 Informer sends out distress signal. 00642_ System corrupted: Matter fused (-9). 00664_ Ion Engine destroyed. 00677_ Dropped Titanium Leg. 00684_ System corrupted: Energy discharge (-85). 00692_ Acquired Adv. Targeting Computer. 00694_ Ion Engine destroyed. 00695_ Acquired Adv. Targeting Computer. 00713_ U-05 Engineer destroyed. 00713_ W-25 Informer sends out distress signal. 00717_ Critical hit (Burn: +37). 00719_ System corrupted: Matter fused (-5). Map ----- +----------------------------------------------------+ | ?????????????????????????????????????????????????? | | ?????????????????????????????????????????????????? | | ?????????????????????????????????????????????????? | | ?????????????????????????????????????????????????? | | ?????????????????????????????????????????????????? | | ?????????????????????????????????????????????????? | | ?????????????????????????????????????????????????? | | ?????????????????????????????????????????????????? | | ?????????????????????????????????????????????????? | | ??????????????? ?????????????????????????????????? | | ??????????????? ?????????????????????????????????? | | ??????????????# ?????????????????????????????????? | | ??????????????# ????###########??????????????????? | | ??????????????# ????# #??????????????????? | | ??????????????# ????# ! T #??????????????????? | | ??????????????# ????# #??????????????????? | | ????########### ##### #??????????????????? | | ??? ###/#######??????????????????? | | ??? t #?????????????????????? | | ?? g g #?????????????????????? | | ?? !!! g=! #?????????????????????? | | ?? ! =! #?????????????????????? | | ?????###########! ! #?????????????????????? | | ?????# # g = #?????????????????????? | | ?????# """"""" # ! !%* #?????????????????????? | | ###### """"""" Y ! @ #?????????????????????? | | + """"""" # #?????????????????????? | | ###### """"""" # a #?????????????????????? | | ?????# """"""" # w#?????????????????????? | | ?????# #! " " ???????????????????? | | ?????#= ! = # "R" ???????????????????? | | ?????########### """ ???????????????????? | | ???????????????###############???????????????????? | | ?????????????????????????????????????????????????? | | ?????????????????????????????????????????????????? | | ?????????????????????????????????????????????????? | | ?????????????????????????????????????????????????? | | ?????????????????????????????????????????????????? | | ?????????????????????????????????????????????????? | | ?????????????????????????????????????????????????? | | ?????????????????????????????????????????????????? | | ?????????????????????????????????????????????????? | | | | | | | | | | | | | | | | | +----------------------------------------------------+ Best States ------------- Heat Dissipation 31 Energy Generation 15 Energy Capacity 400 Matter Stores 300 Matter Capacity 300 Sight Range 16 Terrain Scan Density 10 Evasion (%) 55 Targeting Accuracy 16 Item Schematics ----------------- None Robot Schematics ------------------ None Fabricated ------------ Nothing Alien Tech Used ----------------- None Achievements -------------- None Challenges ------------ None Game ------ Seed ArcThermalFlightbrick Manual? 0 Play Time 00:09:55 Cumulative 108.5 hours Start 2024.04.19 @ 11:22:12 End 2024.04.19 @ 11:31:52 Sessions 1 Manual Loads 0 Difficulty Rogue Special Mode None Game No. 216 Rogue 216 Adventurer 0 Explorer 0 Win Type - Total 0 Types 0/0/0/0/0/0/0/0/0 Lore% 31 Gallery% 41 Achievement% 27 Wizard Run 0 Options --------- Layout 1 ASCII 0 Keyboard 0 Movement Mouse Keybinds 0 Fullscreen 1 Font 24/Smallcaps Map View 50x40 Zoom Use 0% Tactical HUD 1 Map Filters NONE Filters NONE Steam 1 RUN: 2d5a5df2-bf14-406c-b92b-dccd742422c1